[Event "*** Titled Tuesday Blitz"]
[Site "Chess.com"]
[Date "2019.04.02"]
[Round "3"]
[White "larajanzelj"]
[Black "gmjoey1"]
[Result "1/2-1/2"]
[WhiteElo "2359"]
[BlackElo "2488"]
[TimeControl "180+2"]
[EndTime "14:36:59 PDT"]
[Termination "Game drawn by agreement"]

1. d4 {[%clk 0:03:01.9]} 1... Nf6 {[%clk 0:03:00.4]} 2. c4 {[%clk 0:03:02.6]}
2... c5 {[%clk 0:03:00.7]} 3. d5 {[%clk 0:03:02.9]} 3... e6 {[%clk 0:03:01.4]}
4. Nc3 {[%clk 0:03:03.5]} 4... exd5 {[%clk 0:03:02.2]} 5. cxd5 {[%clk
0:03:03.1]} 5... d6 {[%clk 0:03:04.1]} 6. e4 {[%clk 0:03:03]} 6... g6 {[%clk
0:03:04.8]} 7. h3 {[%clk 0:03:04.1]} 7... Bg7 {[%clk 0:03:02.2]} 8. Nf3 {[%clk
0:03:05.2]} 8... Rg8 {[%clk 0:03:02.3]} 9. Bg5 {[%clk 0:03:05]} 9... h6 {[%clk
0:03:02]} 10. Be3 {[%clk 0:03:05.3]} 10... a6 {[%clk 0:03:00.5]} 11. a4 {[%clk
0:03:06]} 11... Qe7 {[%clk 0:02:56.6]} 12. Nd2 {[%clk 0:03:01.4]} 12... Nbd7
{[%clk 0:02:54.1]} 13. Be2 {[%clk 0:02:39.3]} 13... g5 {[%clk 0:02:52.5]} 14. a5
{[%clk 0:02:31.4]} 14... Ne5 {[%clk 0:02:50.1]} 15. Na4 {[%clk 0:02:22.8]} 15...
Nfd7 {[%clk 0:02:47.5]} 16. Qc2 {[%clk 0:02:10.7]} 16... Rb8 {[%clk 0:02:36.3]}
17. g3 {[%clk 0:01:57]} 17... Qd8 {[%clk 0:02:22.7]} 18. f4 {[%clk 0:01:52]}
18... gxf4 {[%clk 0:02:19.9]} 19. gxf4 {[%clk 0:01:53.9]} 19... Ng6 {[%clk
0:02:19.3]} 20. Nc4 {[%clk 0:01:33.5]} 20... Qh4+ {[%clk 0:02:06.5]} 21. Kd2
{[%clk 0:01:24.8]} 21... Qe7 {[%clk 0:01:49]} 22. Rag1 {[%clk 0:01:15.8]} 22...
Nf6 {[%clk 0:01:43.9]} 23. e5 {[%clk 0:00:55.6]} 23... dxe5 {[%clk 0:01:24]} 24.
Rxg6 {[%clk 0:00:54.9]} 24... fxg6 {[%clk 0:01:20.5]} 25. Qxg6+ {[%clk
0:00:45.8]} 25... Kd8 {[%clk 0:01:20.7]} 26. d6 {[%clk 0:00:40.1]} 26... Qe8
{[%clk 0:01:13.3]} 27. Qxe8+ {[%clk 0:00:40.1]} 27... Rxe8 {[%clk 0:01:10.7]}
28. fxe5 {[%clk 0:00:40.9]} 28... Nd7 {[%clk 0:01:10.4]} 29. Bh5 {[%clk
0:00:37.4]} 29... Nxe5 {[%clk 0:01:08.3]} 30. Nxe5 {[%clk 0:00:37.4]} 30... Rxe5
{[%clk 0:01:06.2]} 31. Rg1 {[%clk 0:00:37.1]} 31... Rd5+ {[%clk 0:00:59.7]} 32.
Ke2 {[%clk 0:00:36.2]} 32... Bf8 {[%clk 0:00:41.8]} 33. Bf7 {[%clk 0:00:28.9]}
33... Rxd6 {[%clk 0:00:38.5]} 34. Bxc5 {[%clk 0:00:26.7]} 34... Bxh3 {[%clk
0:00:34.3]} 35. Bxd6 {[%clk 0:00:23.7]} 35... Bxd6 {[%clk 0:00:34.5]} 36. Rg8+
{[%clk 0:00:24.5]} 36... Ke7 {[%clk 0:00:33.8]} 37. Rxb8 {[%clk 0:00:25]} 37...
Bc7 {[%clk 0:00:35.1]} 38. Bd5 {[%clk 0:00:26.4]} 38... Bxb8 {[%clk 0:00:34.5]}
39. Bxb7 {[%clk 0:00:27.8]} 39... Bg4+ {[%clk 0:00:34.9]} 40. Kf2 {[%clk
0:00:27.6]} 40... Ba7+ {[%clk 0:00:34.1]} 41. Kg3 {[%clk 0:00:28]} 41... Be2
{[%clk 0:00:34.5]} 42. Nc3 {[%clk 0:00:28.8]} 42... Bc4 {[%clk 0:00:34.4]} 43.
b3 {[%clk 0:00:29.9]} 43... Bd3 {[%clk 0:00:32.9]} 44. Nd5+ {[%clk 0:00:30.4]}
44... Kd6 {[%clk 0:00:33.6]} 45. Nb4 {[%clk 0:00:31.2]} 45... Bb5 {[%clk
0:00:31.5]} 46. Bxa6 {[%clk 0:00:31.7]} 46... Kc5 {[%clk 0:00:28.4]} 47. Bxb5
{[%clk 0:00:31.2]} 47... Bb8+ {[%clk 0:00:20.8]} 48. Kh4 {[%clk 0:00:28.5]}
48... Kxb4 {[%clk 0:00:21.4]} 49. Bc4 {[%clk 0:00:26.2]} 49... Kxa5 {[%clk
0:00:21.3]} 50. Kh5 {[%clk 0:00:27]} 50... Bf4 {[%clk 0:00:21.8]} 51. Kg4 {[%clk
0:00:27.8]} 51... Bc1 {[%clk 0:00:22.1]} 52. Kh5 {[%clk 0:00:29.7]} 52... Kb4
{[%clk 0:00:23]} 53. Kg4 {[%clk 0:00:30.4]} 53... Bd2 {[%clk 0:00:23.2]} 54. Kh5
{[%clk 0:00:32.3]} 54... Bc1 {[%clk 0:00:20.7]} 1/2-1/2

[Event "*** Titled Tuesday Blitz"]
[Site "Chess.com"]
[Date "2019.04.02"]
[Round "3"]
[White "Last7Samurai"]
[Black "Bigfish1995"]
[Result "1/2-1/2"]
[WhiteElo "2738"]
[BlackElo "2912"]
[TimeControl "180+2"]
[EndTime "14:37:00 PDT"]
[Termination "Game drawn by stalemate"]

1. e4 {[%clk 0:03:01.9]} 1... c6 {[%clk 0:03:00]} 2. Nf3 {[%clk 0:02:59.9]} 2...
d5 {[%clk 0:03:01]} 3. exd5 {[%clk 0:03:01.8]} 3... cxd5 {[%clk 0:03:01.8]} 4.
Ne5 {[%clk 0:03:02.2]} 4... Qb6 {[%clk 0:03:02.7]} 5. d4 {[%clk 0:03:01.8]} 5...
Nc6 {[%clk 0:03:00.7]} 6. Nc3 {[%clk 0:02:55.1]} 6... Nf6 {[%clk 0:02:57.8]} 7.
Bb5 {[%clk 0:02:51.4]} 7... g6 {[%clk 0:02:47.4]} 8. O-O {[%clk 0:02:50.4]} 8...
Bg7 {[%clk 0:02:47.7]} 9. Re1 {[%clk 0:02:50.2]} 9... O-O {[%clk 0:02:44.9]} 10.
a4 {[%clk 0:02:37.3]} 10... Nxe5 {[%clk 0:02:23]} 11. dxe5 {[%clk 0:02:32.4]}
11... Ng4 {[%clk 0:02:24.1]} 12. Qf3 {[%clk 0:02:04.5]} 12... Nxe5 {[%clk
0:02:16.3]} 13. Qxd5 {[%clk 0:02:04.5]} 13... Be6 {[%clk 0:02:11.9]} 14. Qe4
{[%clk 0:02:03.8]} 14... Ng4 {[%clk 0:02:05.2]} 15. Qe2 {[%clk 0:01:53.9]} 15...
a6 {[%clk 0:01:47.8]} 16. Bd3 {[%clk 0:01:52.9]} 16... Ne5 {[%clk 0:01:41.4]}
17. a5 {[%clk 0:01:28.9]} 17... Qc5 {[%clk 0:01:05.9]} 18. Be4 {[%clk
0:01:17.8]} 18... Rab8 {[%clk 0:00:58.2]} 19. Bf4 {[%clk 0:01:12.2]} 19... Rfd8
{[%clk 0:00:50.9]} 20. Red1 {[%clk 0:00:55.3]} 20... Rxd1+ {[%clk 0:00:49.4]}
21. Qxd1 {[%clk 0:00:55.2]} 21... Qb4 {[%clk 0:00:32.7]} 22. Qe1 {[%clk
0:00:37]} 22... Rd8 {[%clk 0:00:30.1]} 23. Rd1 {[%clk 0:00:30.7]} 23... Rxd1
{[%clk 0:00:29.5]} 24. Qxd1 {[%clk 0:00:32.6]} 24... h6 {[%clk 0:00:26.5]} 25.
Bc1 {[%clk 0:00:31]} 25... Nc4 {[%clk 0:00:24.2]} 26. Nd5 {[%clk 0:00:29]} 26...
Bxd5 {[%clk 0:00:20.1]} 27. Bxd5 {[%clk 0:00:30.9]} 27... Nxb2 {[%clk 0:00:18]}
28. Bxb2 {[%clk 0:00:28.2]} 28... Bxb2 {[%clk 0:00:18.3]} 29. g3 {[%clk
0:00:28.4]} 29... e6 {[%clk 0:00:18.9]} 30. Bg2 {[%clk 0:00:28.3]} 30... Bd4
{[%clk 0:00:18.5]} 31. Qe2 {[%clk 0:00:21.8]} 31... Qb1+ {[%clk 0:00:16.5]} 32.
Qf1 {[%clk 0:00:19.8]} 32... Qxc2 {[%clk 0:00:16.7]} 33. Bxb7 {[%clk 0:00:20.7]}
33... Qd2 {[%clk 0:00:17.4]} 34. Bxa6 {[%clk 0:00:21.1]} 34... Qxa5 {[%clk
0:00:18.9]} 35. Bd3 {[%clk 0:00:21.8]} 35... Qd2 {[%clk 0:00:19.4]} 36. Be4
{[%clk 0:00:22.5]} 36... Kg7 {[%clk 0:00:19.6]} 37. Bf3 {[%clk 0:00:23.8]} 37...
h5 {[%clk 0:00:20.7]} 38. Kg2 {[%clk 0:00:25.3]} 38... e5 {[%clk 0:00:21.8]} 39.
Qe2 {[%clk 0:00:26.9]} 39... Qc1 {[%clk 0:00:22.2]} 40. h4 {[%clk 0:00:25.3]}
40... f5 {[%clk 0:00:23.1]} 41. Bd5 {[%clk 0:00:16.7]} 41... e4 {[%clk
0:00:23.5]} 42. Qa2 {[%clk 0:00:15.9]} 42... e3 {[%clk 0:00:19.4]} 43. Bg8
{[%clk 0:00:14.2]} 43... Qc6+ {[%clk 0:00:14.8]} 44. Kh2 {[%clk 0:00:15.6]}
44... Qe8 {[%clk 0:00:14.7]} 45. fxe3 {[%clk 0:00:15.1]} 45... Qxg8 {[%clk
0:00:13.7]} 46. Qxg8+ {[%clk 0:00:14.6]} 46... Kxg8 {[%clk 0:00:15.3]} 47. exd4
{[%clk 0:00:16.5]} 47... Kf7 {[%clk 0:00:16.7]} 48. Kg2 {[%clk 0:00:17.4]} 48...
Ke6 {[%clk 0:00:18]} 49. Kf3 {[%clk 0:00:19.1]} 49... Kd5 {[%clk 0:00:19.1]} 50.
Kf4 {[%clk 0:00:20.7]} 50... Kxd4 {[%clk 0:00:16.1]} 51. Kg5 {[%clk 0:00:22.1]}
51... Ke5 {[%clk 0:00:17.3]} 52. Kxg6 {[%clk 0:00:23.1]} 52... f4 {[%clk
0:00:18.7]} 53. gxf4+ {[%clk 0:00:24.3]} 53... Kxf4 {[%clk 0:00:20.1]} 54. Kxh5
{[%clk 0:00:25.6]} 54... Kf5 {[%clk 0:00:21.5]} 55. Kh6 {[%clk 0:00:27.2]} 55...
Kf6 {[%clk 0:00:23]} 56. h5 {[%clk 0:00:28.7]} 56... Kf7 {[%clk 0:00:24.5]} 57.
Kg5 {[%clk 0:00:30.6]} 57... Kg7 {[%clk 0:00:25.7]} 58. h6+ {[%clk 0:00:32.5]}
58... Kh7 {[%clk 0:00:27.4]} 59. Kh5 {[%clk 0:00:34.4]} 59... Kh8 {[%clk
0:00:29]} 60. Kg6 {[%clk 0:00:36.3]} 60... Kg8 {[%clk 0:00:30.5]} 61. h7+ {[%clk
0:00:38.2]} 61... Kh8 {[%clk 0:00:32.3]} 62. Kh6 {[%clk 0:00:40.1]} 1/2-1/2

[Event "*** Titled Tuesday Blitz"]
[Site "Chess.com"]
[Date "2019.04.02"]
[Round "3"]
[White "ZeroRealtorFade"]
[Black "Manukyan_Artak"]
[Result "0-1"]
[WhiteElo "2266"]
[BlackElo "2442"]
[TimeControl "180+2"]
[EndTime "14:37:04 PDT"]
[Termination "Manukyan_Artak won by resignation"]

1. d4 {[%clk 0:03:00.5]} 1... c6 {[%clk 0:03:01.9]} 2. Bf4 {[%clk 0:03:01.3]}
2... d5 {[%clk 0:03:03.8]} 3. e3 {[%clk 0:03:02.1]} 3... Bf5 {[%clk 0:03:03]} 4.
c3 {[%clk 0:03:02.7]} 4... Qb6 {[%clk 0:03:02.9]} 5. Qb3 {[%clk 0:03:03.5]} 5...
Qxb3 {[%clk 0:03:00.2]} 6. axb3 {[%clk 0:03:04.4]} 6... a6 {[%clk 0:03:01.5]} 7.
Nd2 {[%clk 0:03:04.2]} 7... Nd7 {[%clk 0:03:02.2]} 8. Ngf3 {[%clk 0:03:05]} 8...
f6 {[%clk 0:03:02.6]} 9. Be2 {[%clk 0:03:01.2]} 9... g5 {[%clk 0:03:03.4]} 10.
Bg3 {[%clk 0:03:01.7]} 10... h5 {[%clk 0:03:04.3]} 11. h4 {[%clk 0:03:02.2]}
11... g4 {[%clk 0:03:04.8]} 12. Ng1 {[%clk 0:02:51.7]} 12... Nh6 {[%clk
0:03:00.5]} 13. b4 {[%clk 0:02:45.8]} 13... Rc8 {[%clk 0:03:00.6]} 14. Nb3
{[%clk 0:02:44.5]} 14... e5 {[%clk 0:03:00.1]} 15. Kd2 {[%clk 0:02:38]} 15...
Nf7 {[%clk 0:02:58.2]} 16. Bd3 {[%clk 0:02:34.2]} 16... Bxd3 {[%clk 0:02:42.9]}
17. Kxd3 {[%clk 0:02:36.1]} 17... Bd6 {[%clk 0:02:44]} 18. Ne2 {[%clk
0:02:32.8]} 18... Ke7 {[%clk 0:02:42.8]} 19. Nc5 {[%clk 0:02:25.2]} 19... Nxc5+
{[%clk 0:02:39.8]} 20. bxc5 {[%clk 0:02:25.1]} 20... e4+ {[%clk 0:02:36.2]} 21.
Kd2 {[%clk 0:02:15]} 21... Bxg3 {[%clk 0:02:38.1]} 22. Nxg3 {[%clk 0:02:16]}
22... Ke6 {[%clk 0:02:38.9]} 23. Ne2 {[%clk 0:02:15.6]} 23... f5 {[%clk
0:02:36]} 24. Nf4+ {[%clk 0:02:12]} 24... Kf6 {[%clk 0:02:37.1]} 25. c4 {[%clk
0:02:07.3]} 25... dxc4 {[%clk 0:02:31.7]} 26. Kc3 {[%clk 0:02:05.3]} 26... Nd8
{[%clk 0:02:32]} 27. g3 {[%clk 0:02:01.6]} 27... Ne6 {[%clk 0:02:32.8]} 28. Nxe6
{[%clk 0:01:56.1]} 28... Kxe6 {[%clk 0:02:33.9]} 29. Kxc4 {[%clk 0:01:57.5]}
29... Rhd8 {[%clk 0:02:34.5]} 30. Ra3 {[%clk 0:01:51.4]} 30... Rd5 {[%clk
0:02:31.1]} 31. Rb3 {[%clk 0:01:50.9]} 31... Rc7 {[%clk 0:02:32.1]} 32. Ra1
{[%clk 0:01:45.9]} 32... Kd7 {[%clk 0:02:27.7]} 33. Ra4 {[%clk 0:01:42.7]} 33...
Kc8 {[%clk 0:02:28.5]} 34. Rab4 {[%clk 0:01:43.4]} 34... Rcd7 {[%clk 0:02:26.5]}
35. Rb6 {[%clk 0:01:42.8]} 35... Rg7 {[%clk 0:02:21.2]} 36. Ra3 {[%clk
0:01:40.7]} 36... f4 {[%clk 0:02:15.8]} 37. Raxa6 {[%clk 0:01:11.6]} 37... fxe3
{[%clk 0:01:59.4]} 38. fxe3 {[%clk 0:01:04.2]} 38... Rf5 {[%clk 0:01:53.6]} 39.
Ra8+ {[%clk 0:01:01.2]} 39... Kc7 {[%clk 0:01:54]} 40. Ra7 {[%clk 0:00:56.2]}
40... Kb8 {[%clk 0:01:54]} 41. Ra3 {[%clk 0:00:35.9]} 41... Rf3 {[%clk
0:01:53.5]} 42. d5 {[%clk 0:00:34.9]} 42... cxd5+ {[%clk 0:01:50.5]} 43. Kxd5
{[%clk 0:00:35.5]} 43... Rxg3 {[%clk 0:01:43.9]} 44. c6 {[%clk 0:00:32.6]} 44...
Rf3 {[%clk 0:01:41.6]} 45. cxb7 {[%clk 0:00:18.3]} 45... Rxb7 {[%clk 0:01:35.5]}
46. Rxb7+ {[%clk 0:00:19.3]} 46... Kxb7 {[%clk 0:01:37.4]} 47. Kxe4 {[%clk
0:00:20.5]} 47... Rh3 {[%clk 0:01:35.9]} 48. Ra5 {[%clk 0:00:14]} 48... Rxh4
{[%clk 0:01:36.1]} 49. Rg5 {[%clk 0:00:15.3]} 49... Rh3 {[%clk 0:01:26.8]} 50.
b4 {[%clk 0:00:12.9]} 50... g3 {[%clk 0:01:25.6]} 51. Kf3 {[%clk 0:00:09.5]}
51... h4 {[%clk 0:01:26.3]} 52. e4 {[%clk 0:00:08]} 52... Rh2 {[%clk 0:01:26.3]}
53. e5 {[%clk 0:00:05.9]} 53... Kc6 {[%clk 0:01:13.8]} 54. Ke3 {[%clk
0:00:02.1]} 54... Kd5 {[%clk 0:01:11.6]} 55. b5 {[%clk 0:00:02.8]} 55... Rb2
{[%clk 0:01:12.3]} 56. Rh5 {[%clk 0:00:02.8]} 56... g2 {[%clk 0:01:12.3]} 57.
Rg5 {[%clk 0:00:03.7]} 57... h3 {[%clk 0:01:12.9]} 58. Kf3 {[%clk 0:00:04]}
58... h2 {[%clk 0:01:12.9]} 59. Rxg2 {[%clk 0:00:04.1]} 59... h1=Q {[%clk
0:01:13.9]} 0-1

[Event "*** Titled Tuesday Blitz"]
[Site "Chess.com"]
[Date "2019.04.02"]
[Round "3"]
[White "Grischuk"]
[Black "VitaliyBernadskiy"]
[Result "1-0"]
[WhiteElo "3072"]
[BlackElo "2712"]
[TimeControl "180+2"]
[EndTime "14:37:12 PDT"]
[Termination "Grischuk won by resignation"]

1. e4 {[%clk 0:03:01.9]} 1... c6 {[%clk 0:02:58.2]} 2. Nc3 {[%clk 0:02:57.8]}
2... d5 {[%clk 0:02:59.1]} 3. Nf3 {[%clk 0:02:59.5]} 3... dxe4 {[%clk
0:02:55.3]} 4. Nxe4 {[%clk 0:03:01.4]} 4... Nf6 {[%clk 0:02:56.7]} 5. Qe2 {[%clk
0:03:02.3]} 5... Nxe4 {[%clk 0:02:57.2]} 6. Qxe4 {[%clk 0:03:04.2]} 6... Qd5
{[%clk 0:02:58.5]} 7. Qe3 {[%clk 0:02:51.1]} 7... Qe6 {[%clk 0:02:58.4]} 8. b3
{[%clk 0:02:49.1]} 8... Qxe3+ {[%clk 0:02:59]} 9. fxe3 {[%clk 0:02:48.7]} 9...
Bf5 {[%clk 0:02:51.2]} 10. d3 {[%clk 0:02:43.5]} 10... a5 {[%clk 0:02:47.6]} 11.
e4 {[%clk 0:02:40.2]} 11... Bg6 {[%clk 0:02:36.4]} 12. h4 {[%clk 0:02:40.8]}
12... f6 {[%clk 0:02:33.8]} 13. h5 {[%clk 0:02:40.3]} 13... Bf7 {[%clk
0:02:34.9]} 14. e5 {[%clk 0:02:42]} 14... a4 {[%clk 0:02:32.9]} 15. Bb2 {[%clk
0:02:42.6]} 15... Nd7 {[%clk 0:02:27.3]} 16. O-O-O {[%clk 0:02:32.4]} 16... axb3
{[%clk 0:02:20.2]} 17. axb3 {[%clk 0:02:34.3]} 17... Bd5 {[%clk 0:02:21.4]} 18.
Re1 {[%clk 0:01:46.5]} 18... Bxf3 {[%clk 0:02:20.1]} 19. gxf3 {[%clk 0:01:48.4]}
19... Nxe5 {[%clk 0:02:11.1]} 20. f4 {[%clk 0:01:44.5]} 20... Ng4 {[%clk
0:01:59.1]} 21. Re2 {[%clk 0:01:32.4]} 21... Kf7 {[%clk 0:01:28.9]} 22. Bh3
{[%clk 0:01:33.2]} 22... f5 {[%clk 0:01:27.5]} 23. Rg1 {[%clk 0:01:31.7]} 23...
Rg8 {[%clk 0:00:39.3]} 24. Bxg4 {[%clk 0:01:30.1]} 24... fxg4 {[%clk 0:00:41.2]}
25. Rxg4 {[%clk 0:01:31.5]} 25... g6 {[%clk 0:00:41.2]} 26. Rh4 {[%clk
0:01:33.2]} 26... Bg7 {[%clk 0:00:16.9]} 27. hxg6+ {[%clk 0:01:33.8]} 27... hxg6
{[%clk 0:00:18.8]} 28. Rh7 {[%clk 0:01:34.9]} 28... Rae8 {[%clk 0:00:20.3]} 29.
Be5 {[%clk 0:00:31.6]} 29... Kf8 {[%clk 0:00:17.8]} 30. Rf2 {[%clk 0:00:32.9]}
30... e6 {[%clk 0:00:11]} 31. Kd2 {[%clk 0:00:29]} 31... Rd8 {[%clk 0:00:11.5]}
32. Ke3 {[%clk 0:00:25.8]} 32... Rd7 {[%clk 0:00:11.8]} 33. Ke4 {[%clk
0:00:13.4]} 33... Rf7 {[%clk 0:00:11.7]} 34. Bd6+ {[%clk 0:00:07.9]} 34... Ke8
{[%clk 0:00:12.6]} 35. d4 {[%clk 0:00:08]} 35... g5 {[%clk 0:00:12.8]} 36. Rf3
{[%clk 0:00:05.6]} 36... gxf4 {[%clk 0:00:11.4]} 37. Rxf4 {[%clk 0:00:07.1]}
37... Rxf4+ {[%clk 0:00:10.4]} 38. Bxf4 {[%clk 0:00:09]} 38... b5 {[%clk
0:00:07.4]} 39. c4 {[%clk 0:00:07.9]} 39... bxc4 {[%clk 0:00:07.7]} 40. bxc4
{[%clk 0:00:09.8]} 40... Kf8 {[%clk 0:00:04.2]} 41. Be5 {[%clk 0:00:08.6]} 41...
Bxe5 {[%clk 0:00:02.8]} 42. Kxe5 {[%clk 0:00:10.5]} 42... Rg4 {[%clk 0:00:03.6]}
43. Rc7 {[%clk 0:00:10.7]} 43... Ke8 {[%clk 0:00:04.6]} 44. Rxc6 {[%clk
0:00:11.7]} 44... Kf7 {[%clk 0:00:05.8]} 45. Rc7+ {[%clk 0:00:07.4]} 45... Ke8
{[%clk 0:00:06.5]} 46. c5 {[%clk 0:00:08.6]} 46... Kd8 {[%clk 0:00:06.9]} 47.
Rh7 {[%clk 0:00:09.6]} 47... Kc8 {[%clk 0:00:06.5]} 48. Re7 {[%clk 0:00:10.3]}
1-0

[Event "*** Titled Tuesday Blitz"]
[Site "Chess.com"]
[Date "2019.04.02"]
[Round "3"]
[White "MITerryble"]
[Black "dmosesov"]
[Result "1-0"]
[WhiteElo "2831"]
[BlackElo "2504"]
[TimeControl "180+2"]
[EndTime "14:37:12 PDT"]
[Termination "MITerryble won by resignation"]

1. d4 {[%clk 0:03:01.9]} 1... Nf6 {[%clk 0:03:00.8]} 2. Bg5 {[%clk 0:03:03.2]}
2... Ne4 {[%clk 0:03:01.8]} 3. Bf4 {[%clk 0:03:02.8]} 3... c5 {[%clk 0:03:03.2]}
4. f3 {[%clk 0:03:01.8]} 4... Qa5+ {[%clk 0:03:02.5]} 5. c3 {[%clk 0:03:01.4]}
5... Nf6 {[%clk 0:03:03.8]} 6. d5 {[%clk 0:03:01.9]} 6... Qb6 {[%clk 0:03:05.3]}
7. Bc1 {[%clk 0:03:02.7]} 7... e6 {[%clk 0:03:03.7]} 8. e4 {[%clk 0:03:03.8]}
8... exd5 {[%clk 0:03:04.7]} 9. exd5 {[%clk 0:03:05]} 9... d6 {[%clk 0:03:00.2]}
10. Na3 {[%clk 0:03:04.1]} 10... Be7 {[%clk 0:03:00.9]} 11. Nc4 {[%clk
0:03:03.4]} 11... Qc7 {[%clk 0:03:02.2]} 12. a4 {[%clk 0:03:04.7]} 12... O-O
{[%clk 0:03:02.5]} 13. Ne2 {[%clk 0:03:04.5]} 13... Re8 {[%clk 0:02:53.7]} 14.
Kf2 {[%clk 0:02:55.2]} 14... Bf5 {[%clk 0:02:30.8]} 15. g4 {[%clk 0:02:50]}
15... Nxg4+ {[%clk 0:02:16.1]} 16. fxg4 {[%clk 0:02:51.9]} 16... Bxg4 {[%clk
0:02:17.5]} 17. Qd3 {[%clk 0:02:48.6]} 17... Bh4+ {[%clk 0:02:08.7]} 18. Ng3
{[%clk 0:02:45.2]} 18... Qe7 {[%clk 0:02:09.6]} 19. Bg2 {[%clk 0:02:35.5]} 19...
Be2 {[%clk 0:01:56.4]} 20. Qe3 {[%clk 0:02:17]} 20... Bxc4 {[%clk 0:01:41.7]}
21. Qxe7 {[%clk 0:02:12.3]} 21... Rxe7 {[%clk 0:01:43.1]} 22. Bf4 {[%clk
0:02:14.2]} 22... Re2+ {[%clk 0:01:43.6]} 23. Kg1 {[%clk 0:02:15.4]} 23... Bxg3
{[%clk 0:01:34.8]} 24. hxg3 {[%clk 0:02:12]} 24... Rxg2+ {[%clk 0:01:35.6]} 25.
Kxg2 {[%clk 0:02:13.9]} 25... Bxd5+ {[%clk 0:01:37.4]} 26. Kh2 {[%clk
0:02:15.8]} 26... Bxh1 {[%clk 0:01:38.6]} 27. Kxh1 {[%clk 0:02:15.5]} 27... Nc6
{[%clk 0:01:32.2]} 28. Bxd6 {[%clk 0:02:16.7]} 28... c4 {[%clk 0:01:32.4]} 29.
Re1 {[%clk 0:02:16]} 29... h6 {[%clk 0:01:33.3]} 30. Re4 {[%clk 0:02:17]} 30...
Rd8 {[%clk 0:01:33.7]} 31. Bf4 {[%clk 0:02:17.4]} 31... g5 {[%clk 0:01:27.5]}
32. Be3 {[%clk 0:02:18.5]} 32... Rd1+ {[%clk 0:01:22.3]} 33. Kg2 {[%clk
0:02:18]} 33... Rb1 {[%clk 0:01:24.2]} 34. Rxc4 {[%clk 0:02:08]} 34... Rxb2+
{[%clk 0:01:21.8]} 35. Kh3 {[%clk 0:02:09.9]} 35... Ne5 {[%clk 0:01:17]} 36.
Rc8+ {[%clk 0:02:08.2]} 36... Kh7 {[%clk 0:01:13.9]} 37. g4 {[%clk 0:02:10.1]}
37... b6 {[%clk 0:00:43.2]} 38. Bd4 {[%clk 0:02:07.6]} 38... Ng6 {[%clk
0:00:42.1]} 39. Kg3 {[%clk 0:02:00.3]} 39... Rd2 {[%clk 0:00:30.7]} 40. Rc7
{[%clk 0:01:57.5]} 40... Rd3+ {[%clk 0:00:31.6]} 41. Kf2 {[%clk 0:01:57.9]}
41... Nf4 {[%clk 0:00:24.9]} 42. Rxf7+ {[%clk 0:01:56.5]} 42... Kg8 {[%clk
0:00:26.2]} 43. Rg7+ {[%clk 0:01:57.4]} 43... Kf8 {[%clk 0:00:27.2]} 44. Rxa7
{[%clk 0:01:59.3]} 44... Rd2+ {[%clk 0:00:20.9]} 45. Kf3 {[%clk 0:01:56.8]}
45... Rb2 {[%clk 0:00:18.1]} 46. Bg7+ {[%clk 0:01:52.5]} 46... Ke8 {[%clk
0:00:18.9]} 47. Bxh6 {[%clk 0:01:54.4]} 47... Ne6 {[%clk 0:00:19]} 48. Ke4
{[%clk 0:01:54.9]} 48... Rf2 {[%clk 0:00:13.8]} 49. Ke5 {[%clk 0:01:53.3]} 49...
Nd8 {[%clk 0:00:08.7]} 50. Ra8 {[%clk 0:01:43.3]} 50... Re2+ {[%clk 0:00:08]}
51. Kf5 {[%clk 0:01:43.2]} 51... Rf2+ {[%clk 0:00:07.9]} 52. Kg6 {[%clk
0:01:44]} 52... Kd7 {[%clk 0:00:08.5]} 53. Bxg5 {[%clk 0:01:44.4]} 53... Ne6
{[%clk 0:00:09.3]} 54. Bf6 {[%clk 0:01:44.9]} 54... Rf3 {[%clk 0:00:05.7]} 55.
g5 {[%clk 0:01:44.5]} 55... Nf4+ {[%clk 0:00:07]} 56. Kf7 {[%clk 0:01:45.6]}
56... Nd5 {[%clk 0:00:08.8]} 57. c4 {[%clk 0:01:44.6]} 57... Nc7 {[%clk
0:00:08.8]} 58. Rd8+ {[%clk 0:01:42.4]} 58... Kc6 {[%clk 0:00:09.4]} 59. g6
{[%clk 0:01:43.7]} 1-0

[Event "*** Titled Tuesday Blitz"]
[Site "Chess.com"]
[Date "2019.04.02"]
[Round "3"]
[White "PowerThinking2650"]
[Black "effefe"]
[Result "1-0"]
[WhiteElo "2382"]
[BlackElo "2240"]
[TimeControl "180+2"]
[EndTime "14:37:14 PDT"]
[Termination "PowerThinking2650 won by checkmate"]

1. e4 {[%clk 0:02:59.5]} 1... c5 {[%clk 0:02:56.6]} 2. Nf3 {[%clk 0:02:59.6]}
2... d6 {[%clk 0:02:57.8]} 3. d4 {[%clk 0:03:00.4]} 3... cxd4 {[%clk 0:02:59.1]}
4. Nxd4 {[%clk 0:03:01.9]} 4... Nf6 {[%clk 0:03:00.8]} 5. Nc3 {[%clk 0:03:03.3]}
5... g6 {[%clk 0:03:02.5]} 6. Be3 {[%clk 0:03:01.5]} 6... Bg7 {[%clk 0:03:03.9]}
7. f3 {[%clk 0:03:02.2]} 7... O-O {[%clk 0:03:05.3]} 8. Qd2 {[%clk 0:03:03.5]}
8... Nc6 {[%clk 0:03:06.6]} 9. O-O-O {[%clk 0:03:01.4]} 9... d5 {[%clk
0:03:05.1]} 10. Nxc6 {[%clk 0:03:01.9]} 10... bxc6 {[%clk 0:03:06.3]} 11. Bh6
{[%clk 0:03:02.9]} 11... Bxh6 {[%clk 0:02:47.9]} 12. Qxh6 {[%clk 0:03:03.1]}
12... e5 {[%clk 0:02:49.1]} 13. h4 {[%clk 0:02:53.6]} 13... d4 {[%clk
0:02:49.9]} 14. h5 {[%clk 0:02:48.4]} 14... Qe7 {[%clk 0:02:47.4]} 15. Na4
{[%clk 0:02:25.7]} 15... Be6 {[%clk 0:02:47.3]} 16. g4 {[%clk 0:02:21]} 16...
Rab8 {[%clk 0:02:44.6]} 17. hxg6 {[%clk 0:01:42.3]} 17... fxg6 {[%clk
0:02:44.1]} 18. g5 {[%clk 0:01:13.4]} 18... Nh5 {[%clk 0:02:42.9]} 19. Rxh5
{[%clk 0:01:05.6]} 19... gxh5 {[%clk 0:02:44.8]} 20. g6 {[%clk 0:01:06.5]} 20...
Qg7 {[%clk 0:01:51.4]} 21. gxh7+ {[%clk 0:01:06.7]} 21... Kh8 {[%clk 0:01:52]}
22. Qxe6 {[%clk 0:01:06.2]} 22... Rxf3 {[%clk 0:01:37.6]} 23. Bc4 {[%clk
0:00:58]} 23... Kxh7 {[%clk 0:01:35.8]} 24. Rh1 {[%clk 0:00:48.7]} 24... Qg5+
{[%clk 0:01:35.8]} 25. Kb1 {[%clk 0:00:45.3]} 25... Rbf8 {[%clk 0:01:35.9]} 26.
a3 {[%clk 0:00:40.5]} 26... h4 {[%clk 0:01:29.2]} 27. Nc5 {[%clk 0:00:35.3]}
27... R8f6 {[%clk 0:00:58.8]} 28. Qe7+ {[%clk 0:00:35]} 28... Kh6 {[%clk
0:00:59]} 29. Ne6 {[%clk 0:00:30.1]} 29... Rf1+ {[%clk 0:00:54.3]} 30. Ka2
{[%clk 0:00:26.3]} 30... Rxh1 {[%clk 0:00:41.2]} 31. Nxg5 {[%clk 0:00:26.5]}
31... Kxg5 {[%clk 0:00:43.1]} 32. Qxe5+ {[%clk 0:00:27]} 32... Kg6 {[%clk
0:00:42.1]} 33. Qe8+ {[%clk 0:00:27.6]} 33... Kg5 {[%clk 0:00:34.5]} 34. e5
{[%clk 0:00:28]} 34... Rh6 {[%clk 0:00:18.6]} 35. Qe7+ {[%clk 0:00:25.6]} 35...
Kf4 {[%clk 0:00:10.4]} 36. Qf8+ {[%clk 0:00:25.9]} 36... Kg5 {[%clk 0:00:11.8]}
37. e6 {[%clk 0:00:25.8]} 37... Re1 {[%clk 0:00:12.6]} 38. e7 {[%clk 0:00:24.3]}
38... h3 {[%clk 0:00:13.9]} 39. Qg7+ {[%clk 0:00:17.6]} 39... Rg6 {[%clk
0:00:07.2]} 40. Qxd4 {[%clk 0:00:16.6]} 40... Rxe7 {[%clk 0:00:06.5]} 41. Qf2
{[%clk 0:00:10]} 41... Re5 {[%clk 0:00:05.3]} 42. Qg3+ {[%clk 0:00:10.3]} 42...
Kf6 {[%clk 0:00:06.8]} 43. Qxh3 {[%clk 0:00:10.9]} 43... Reg5 {[%clk 0:00:04.5]}
44. Qf3+ {[%clk 0:00:11.4]} 44... Kg7 {[%clk 0:00:04.9]} 45. Qc3+ {[%clk
0:00:12]} 45... Kh6 {[%clk 0:00:06.1]} 46. Bd3 {[%clk 0:00:13]} 46... Re6 {[%clk
0:00:06]} 47. Qh8# {[%clk 0:00:13.6]} 1-0